Cogmind - Beta 13 @@@ ROGUE MODE // 2024.04.17 @ 21:47:20 Player: skelll Result: Destroyed by G-34 Mercenary with Small Laser Performance ------------- Evolutions (0) 0 Regions Visited (1) 200 Robots Destroyed (13) 65 Value Destroyed (311) 311 Prototype IDs (0) 0 Alien Tech Used (0) 0 Bonus (0) 0 TOTAL SCORE: 576 Bonus ------- None Cogmind --------- Core Integrity 0/250 Matter 229/300 Energy 87/100 System Corruption 0% Temperature Warm (162) Movement Rolling (115) Ox1 Location -10/Materials Parts ------- > --- POWER (1) -------- (None) > --- PROPULSION (2) --- Compact Wheel > --- UTILITY (2) ------ Large Storage Unit ECM Suite > --- WEAPON (2) ------- Beam Cannon Light Assault Rifle > --- INVENTORY (15) --- Light Ion Engine Light Ion Engine Heat Sink Improved Targeting Computer Improved Targeting Computer Beam Cannon Beam Cannon Light Cannon EMP Blaster Peak State ------------ > --- POWER ------------ Ion Engine > --- PROPULSION ------- Wheel Wheel > --- UTILITY ---------- Large Storage Unit ECM Suite > --- WEAPON ----------- Light Assault Rifle Light Cannon > --- INVENTORY -------- Light Ion Engine Light Ion Engine Heat Sink Improved Targeting Computer Improved Targeting Computer Beam Cannon Light Assault Rifle EMP Blaster [Rating: 8] Favorites ----------- Power Ion Engine Engine Ion Engine Propulsion Wheel Wheel Wheel Utility ECM Suite Device ECM Suite Storage Large Storage Unit Weapon Light Assault Rifle Energy Cannon Beam Cannon Ballistic Gun Light Assault Rifle Ballistic Cannon Light Cannon Build | -11 -10 ------- Run | Yrd Mat Slots Evolved . | . . Power . | . . Propulsion . | . . Utility . | . . Weapon . | . . Parts Attached 25 | 5 20 Power 5 | 1 4 Engine 5 | 1 4 Core . | . . Reactor . | . . Propulsion 7 | 2 5 Treads . | . . Leg . | . . Wheel 7 | 2 5 Hover . | . . Flight . | . . Utility 5 | . 5 Device 2 | . 2 Storage 3 | . 3 Processor . | . . Hackware . | . . Protection . | . . Artifact . | . . Weapon 8 | 2 6 Energy Gun . | . . Energy Cannon 2 | . 2 Ballistic Gun 5 | 2 3 Ballistic Cannon 1 | . 1 Launcher . | . . Special Weapon . | . . Impact Weapon . | . . Slashing Weapon . | . . Piercing Weapon . | . . Special Melee Weapon . | . . Unidentified Prototypes . | . . Parts Lost 4 | . 4 Power 1 | . 1 Propulsion 2 | . 2 Utility . | . . Weapon 1 | . 1 Highest Loss Streak 2 | . 2 To Critical Strikes . | . . Average Slot Usage (%) 84 | . 84 Engine 12 | . 12 Wheel 24 | . 24 Device 10 | . 10 Storage 12 | . 12 Energy Cannon 6 | . 6 Ballistic Gun 14 | . 14 Ballistic Cannon 1 | . 1 Naked Turns . | . . Heaviest Build 146 | 6 146 Greatest Support 26 | 20 26 Greatest Overweight (x) 7 | . 7 Average Overweight (x) . | . . Largest Inventory Capacity 30 | 5 30 Average Capacity 11 | 5 12 Most Carried 13 | 2 13 Average Carried 7 | . 7 Final Capacity 15 | 5 15 Final Carried 9 | 2 9 Class Distribution -------------------- 100% | Mutant Dominant Class ---------------- Mutant | -10/Materials Resources | -11 -10 ----------- Run | Yrd Mat Matter Collected 457 | 262 195 Remotely . | . . Salvage Created 388 | 30 358 Parts 21 | 2 19 Haulers Intercepted . | . . Recyclers Shooed . | . . Parts Field Recycled . | . . Retrieved Matter . | . . Parts Self-Destructed . | . . Prevented . | . . Kills | -11 -10 ------- Run | Yrd Mat Combat Hostiles Destroyed 13 | 1 12 Guns 9 | 1 8 Cannons 4 | . 4 Classes Destroyed 2 | 1 1 Swarmer 6 | . 6 Grunt 7 | 1 6 Best Kill Streak 3 | 1 3 Combat Bots Only 3 | 1 3 Max Kills in Single Turn 1 | 1 1 Gunslinging . | . . Exploded . | . . Melee . | . . Uniques/NPCs Destroyed . | . . Combat | -11 -10 -------- Run | Yrd Mat Hostile Shots Fired 79 | 3 76 Missed 14 | . 14 Damage Taken 624 | 34 590 Core 255 | . 255 Absorbed by Shields . | . . Core Remaining (%) 100 | 100 . Volleys Fired 36 | 3 33 Largest 2 | 2 2 Hottest 80 | 40 80 Shots Fired 70 | 6 64 Gun 48 | 6 42 Cannon 22 | . 22 Launcher . | . . Special . | . . Kinetic 48 | 6 42 Thermal 22 | . 22 Explosive . | . . Electromagnetic . | . . Robot Hit Streak 14 | 2 14 Robot Miss Streak 7 | 2 7 Penetration Max . | . . Secondary Targets 1 | . 1 Max Gunslinging Chain 1 | . 1 Shots Hit Robots 39 | 3 36 Core Hits 21 | 1 20 Critical Kills . | . . Critical Parts Destroyed . | . . Critical Strikes . | . . Melee Attacks . | . . Impact . | . . Slashing . | . . Piercing . | . . Sneak Attacks . | . . Combat Hostiles . | . . Follow-up Attacks . | . . Damage Inflicted 511 | 38 473 Guns 281 | 38 243 Cannons 230 | . 230 Explosions . | . . Melee . | . . Ramming . | . . Kinetic 281 | 38 243 Thermal 230 | . 230 Explosive . | . . Electromagnetic . | . . Impact . | . . Slashing . | . . Piercing . | . . Highest Corruption . | . . Average Corruption . | . . Corruption Purged . | . . Corruption Blocked . | . . Overload Shots . | . . Overflow Damage . | . . Projectiles . | . . Explosions . | . . Melee . | . . Knockbacks . | . . Impact . | . . Kinetic . | . . Secondary . | . . Self-Inflicted Damage . | . . Shots . | . . Rammed . | . . Targets Rammed . | . . Kicked . | . . Crushed . | . . Highest Temperature 220 | 6 220 Average Temperature 87 | 6 93 Received Heat Transfer 162 | 18 144 Siege Activations . | . . Robots Corrupted . | . . Combat Hostiles . | . . Parts Fried . | . . Impact Corruptions . | . . Robots Melted . | . . Combat Hostiles . | . . Parts Melted . | . . Heat Transferred 481 | . 481 Parts Sabotaged . | . . Parts Stolen . | . . Parts Stripped . | . . Power Chain Reactions . | . . Alert | -11 -10 ------- Run | Yrd Mat Peak Influence 170 | 20 170 Initial 13 | . 13 Average 69 | 2 76 Maximum Alert Level . | . . Low Security (%) 100 | 100 100 Level 1 . | . . Level 2 . | . . Level 3 . | . . Level 4 . | . . Level 5 . | . . High Security . | . . Max Security . | . . Squads Dispatched 3 | . 3 Investigation 1 | . 1 Extermination . | . . Reinforcement 2 | . 2 Assault . | . . Garrison . | . . Intercept . | . . Searches Triggered . | . . Construction Impeded . | . . Haulers Reinforced . | . . Active Scanning Responses . | . . Cargo Convoy Interrupts . | . . Stealth | -11 -10 --------- Run | Yrd Mat Distress Signals 1 | . 1 Communications Jammed . | . . Distress Signals . | . . Times Spotted 21 | 1 20 Peak Tracking Total 6 | 1 6 Tactical Retreats 3 | . 3 Traps | -11 -10 ------- Run | Yrd Mat Traps Triggered 6 | . 6 Indirectly . | . . Trap Hack Attempts . | . . Triggered . | . . Disarmed . | . . Reprogrammed . | . . Reused . | . . Traps Extracted . | . . Installed . | . . Triggered . | . . Machines | -11 -10 ---------- Run | Yrd Mat Machines Disabled . | . . Max in Single Turn . | . . Machines Repaired . | . . Machines Dismantled . | . . Machines Sabotaged . | . . Overloaded Fab Kills . | . . Hacking | -11 -10 --------- Run | Yrd Mat Machines Accessed . | . . Terminals . | . . Fabricators . | . . Repair Stations . | . . Recycling Units . | . . Scanalyzers . | . . Garrison Access . | . . Total Hacks . | . . Successful . | . . Failed . | . . Catastrophic . | . . Database Lockouts . | . . Manual . | . . Terminals . | . . Fabricators . | . . Repair Stations . | . . Recycling Units . | . . Scanalyzers . | . . Garrison Access . | . . Terminal Hacks . | . . Fabricator Hacks . | . . Repair Station Hacks . | . . Recycling Unit Hacks . | . . Scanalyzer . | . . Garrison Access Hacks . | . . Unauthorized Hacks . | . . Terminals . | . . Fabricators . | . . Repair Stations . | . . Recycling Units . | . . Scanalyzers . | . . Garrison Access . | . . Data Cores Recovered . | . . Used . | . . Hacking Detections . | . . Full Trace Events . | . . Feedback Events . | . . Feedback Blocked . | . . Robot Schematics Acquired . | . . Robots Built . | . . Authchips . | . . Time . | . . Total Robot Build Rating . | . . Part Schematics Acquired . | . . Parts Built . | . . Authchips . | . . Time . | . . Total Part Build Rating . | . . Parts Repaired . | . . Time . | . . Parts Recycled . | . . Recycled Matter . | . . Retrieved Matter . | . . Retrieved Components . | . . Parts Scanalyzed . | . . Part Schematics Acquired . | . . Parts Damaged . | . . Bothacking | -11 -10 ------------ Run | Yrd Mat Used RIF Installer . | . . Robots Hacked . | . . Non-combat . | . . Combat . | . . Robot Hacks Applied . | . . Relay Couplers Released . | . . Fabnet Peak Effective % . | . . Robots Rewired . | . . Allies Hacked . | . . Hacks Repelled . | . . Allies | -11 -10 -------- Run | Yrd Mat Total Allies . | . . Largest Group . | . . Highest-Rated Group . | . . Highest-Rated Ally . | . . Total Orders . | . . Ally Attacks . | . . Total Damage . | . . Kills . | . . Allies Corrupted . | . . Allies Melted . | . . Intel | -11 -10 ------- Run | Yrd Mat Robot Analysis Total . | . . Derelict Logs Recovered . | . . Drone Launches . | . . Drone Recoveries . | . . Exploration | -11 -10 ------------- Run | Yrd Mat Turns Passed 767 | 76 691 Spaces Moved 614 | 82 532 Core 36 | 24 12 Treads . | . . Legs . | . . Wheels 578 | 58 520 Hover . | . . Flight . | . . Fastest Speed 50 | 50 80 Average Speed 94 | 71 97 Slowest Speed 400 | 80 400 Overloaded Moves . | . . Propulsion Burnouts . | . . Robots Hopped . | . . Cave-ins Triggered . | . . Exploration Rate (%) 31 | 5 57 Regions Visited 1 Branch Regions . Pre-discovered Areas . | . . Known Exits Taken . | . . Unknown Exits Taken 1 | 1 . Scrap Searched . | . . Spaces Dug . | . . Terrain Destroyed . | . . Melee . | . . Projectile . | . . AOE . | . . Terrain Rammed . | . . Walls Destroyed . | . . Machines Disabled . | . . Actions | -11 -10 --------- Run | Yrd Mat Total 742 | 91 651 Wait 28 | . 28 Move 613 | 81 532 Hop . | . . Pick Up 30 | 2 28 Fast Attach 9 | 5 4 Attach 15 | . 15 Detach . | . . Swap 1 | . 1 Drop 10 | . 10 Fire 36 | 3 33 Melee . | . . Ram . | . . Kick . | . . Crush . | . . Escape Stasis . | . . Rewire . | . . Trap . | . . Miscellaneous . | . . Route ------- -11/Scrapyard -10/Materials (discovered 3 exits: [*Mat] / [*Min x2]) History --------- Turn | Location | Event 2 | -11/Scrapyard | Met Revision 17 55 | -11/Scrapyard | Discovered new exit (range 8) 77 | -11/Scrapyard | Entered Materials 216 | -10/Materials | Discovered new exit (range 8) 311 | -10/Materials | Build established: Mutant 391 | -10/Materials | Discovered new exit (range 16) 633 | -10/Materials | Core integrity fell below 50% 679 | -10/Materials | Core integrity fell below 20% 716 | -10/Materials | Discovered new exit (range 15) 768 | -10/Materials | Destroyed by G-34 Mercenary with Small Laser Last Messages --------------- 00686_ K-01 Serf collects debris. 00716_ EXIT=FOUND 00743_ O-16 Technician: "IFF HANDSHAKE FAILED. SECURING TERMINAL." 00747_ ALERT: Hostiles spotted, dispatching reinforcements to Terminal M008. 00749_ O-16 Technician: "IFF HANDSHAKE FAILED. SECURING TERMINAL." 00756_ Triggered Alarm Trap. 00756_ An alarm sounds. 00756_ ALERT: Alarm triggered, dispatching investigation squad. 00760_ Wheel destroyed. 00761_ U-05 Engineer lays Concrete. 00763_ G-34 Mercenary destroyed. 00764_ U-05 Engineer lays Concrete. 00765_ G-34 Mercenary destroyed. 00766_ Ion Engine destroyed. 00768_ ALERT: Hostiles spotted, dispatching reinforcements to Terminal M002. Map ----- +----------------------------------------------------+ | ## #""!"!""## """ #????????????????? | | ## # "!"!" ## "" #????????????????? | | ##+#########/## ## "" #????????????????? | | ^^ " #????????????????? | | ^ < #????????????????? | | #????????????????? | | ############+## ##+#####+##????????????????? | | ?????# ######### #????????????????? | | #????# """ "#???????# """ """ #????????????????? | | #????# """ "#???????# """ """ #????????????????? | | ?????# """ "#???????# """ """ #????????????????? | | ?????#[* """ T#???????# #????????????????? | | ?????# """ "#???????# #????????????????? | | ?????# "#???????# #????????????????? | | ?????# "#???????# #????????????????? | | ?????# #???????###+#######????????????????? | | ?????##########?????????# #??????????????????????? | | ????????????????????????# #??????????????????????? | | ????????????????????????# #??????????????????????? | | ???????????#######+###### #####??????????????????? | | ?????????? !##?????????????????? | | ?????????? !#?????????????????? | | ?????????? !#?????????????????? | | ???????????#######+##### !#?????????????????? | | ???????????????????????# !#?????????????????? | | ???????????????????????#u@ !##?????????????????? | | ???????????????????????# ####??????????????????? | | ??????????????????????# #????????????????????? | | ??????????????????????#=%%g g ???????????????????? | | ??????????????????????# < ??????????????????? | | ??????????????????????# ?????????????????? | | ??????????????????????# w#####????????????????? | | ??????????????????????###+###????????????????????? | | ?????????????????????????????????????????????????? | | ?????????????????????????????????????????????????? | | ?????????????????????????????????????????????????? | | ?????????????????????????????????????????????????? | | ?????????????????????????????????????????????????? | | ?????????????????????????????????????????????????? | | ?????????????????????????????????????????????????? | | ?????????????????????????????????????????????????? | | | | | | | | | | | | | | | | | | | +----------------------------------------------------+ Best States ------------- Heat Dissipation 25 Energy Generation 10 Energy Capacity 250 Matter Stores 342 Matter Capacity 350 Sight Range 16 Terrain Scan Density 10 ECM Strength 1 Evasion (%) 50 Item Schematics ----------------- None Robot Schematics ------------------ None Fabricated ------------ Nothing Alien Tech Used ----------------- None Achievements -------------- None Challenges ------------ None Game ------ Seed HardenedTacticalStick Manual? 0 Play Time 00:15:01 Cumulative 1.8 hours Start 2024.04.17 @ 21:31:25 End 2024.04.17 @ 21:47:20 Sessions 1 Manual Loads 0 Difficulty Rogue Special Mode None Game No. 3 Rogue 3 Adventurer 0 Explorer 0 Win Type - Total 0 Types 0/0/0/0/0/0/0/0/0 Lore% 1 Gallery% 3 Achievement% 3 Wizard Run 0 Options --------- Layout 1 ASCII 0 Keyboard 1 Movement Arrows Keybinds 0 Fullscreen 2 Font 24/Smallcaps Map View 50x35 Zoom Use 0% Tactical HUD 1 Map Filters NONE Filters NONE Steam 1 RUN: 9b8928f5-71d9-4965-9352-1e454a96b6af